[Event "*** Titled Tuesday Blitz"]
[Site "Chess.com"]
[Date "2021.04.20"]
[Round "11"]
[White "MFguimaraes"]
[Black "annamaja"]
[Result "1-0"]
[WhiteElo "2403"]
[BlackElo "2280"]
[TimeControl "180+1"]
[EndTime "12:05:35 PDT"]
[Termination "MFguimaraes won by resignation"]

1. e4 {[%clk 0:03:00.9]} 1... e6 {[%clk 0:02:58.7]} 2. d4 {[%clk 0:03:00.4]}
2... d5 {[%clk 0:02:58.5]} 3. Bd3 {[%clk 0:03:01.3]} 3... Nf6 {[%clk 0:02:56.5]}
4. e5 {[%clk 0:03:01.4]} 4... Nfd7 {[%clk 0:02:55.4]} 5. Nf3 {[%clk 0:03:01.5]}
5... c5 {[%clk 0:02:55.2]} 6. c3 {[%clk 0:03:02.4]} 6... Nc6 {[%clk 0:02:50.6]}
7. O-O {[%clk 0:03:01.6]} 7... Be7 {[%clk 0:02:41.5]} 8. g3 {[%clk 0:02:59.2]}
8... O-O {[%clk 0:02:39.5]} 9. h4 {[%clk 0:02:58.8]} 9... f6 {[%clk 0:02:30.4]}
10. exf6 {[%clk 0:02:57.5]} 10... Bxf6 {[%clk 0:02:27.3]} 11. Ng5 {[%clk
0:02:57.6]} 11... Bxg5 {[%clk 0:02:19.8]} 12. hxg5 {[%clk 0:02:55.3]} 12... g6
{[%clk 0:02:10.5]} 13. Be3 {[%clk 0:02:45.3]} 13... Qe7 {[%clk 0:02:00.4]} 14.
Nd2 {[%clk 0:02:39.9]} 14... e5 {[%clk 0:01:54.1]} 15. dxe5 {[%clk 0:02:26.6]}
15... Ndxe5 {[%clk 0:01:52.2]} 16. Be2 {[%clk 0:02:26.6]} 16... Bh3 {[%clk
0:01:43.6]} 17. Re1 {[%clk 0:02:23.3]} 17... Qf7 {[%clk 0:01:20.2]} 18. f4
{[%clk 0:02:18.7]} 18... Nd7 {[%clk 0:01:14.6]} 19. Bg4 {[%clk 0:02:00.1]} 19...
Bxg4 {[%clk 0:01:12.6]} 20. Qxg4 {[%clk 0:02:01]} 20... d4 {[%clk 0:01:12.4]}
21. cxd4 {[%clk 0:02:00.2]} 21... cxd4 {[%clk 0:01:13.3]} 22. Bf2 {[%clk
0:01:59.7]} 22... Nc5 {[%clk 0:01:05]} 23. Rac1 {[%clk 0:01:49.6]} 23... Nd3
{[%clk 0:01:03.1]} 24. Ne4 {[%clk 0:01:49.5]} 24... Nxc1 {[%clk 0:00:55.6]} 25.
Nf6+ {[%clk 0:01:48.3]} 25... Kh8 {[%clk 0:00:52.4]} 26. Rxc1 {[%clk 0:01:48.2]}
26... Rad8 {[%clk 0:00:44.6]} 27. Kg2 {[%clk 0:01:43.9]} 27... Qg7 {[%clk
0:00:36.8]} 28. Qf3 {[%clk 0:01:32]} 28... Rxf6 {[%clk 0:00:30.5]} 29. gxf6
{[%clk 0:01:31.6]} 29... Qxf6 {[%clk 0:00:31.4]} 30. Rd1 {[%clk 0:01:28.8]}
30... Qe6 {[%clk 0:00:20.2]} 31. b3 {[%clk 0:01:24.2]} 31... Qd5 {[%clk
0:00:20.3]} 32. Qxd5 {[%clk 0:01:24]} 32... Rxd5 {[%clk 0:00:21.2]} 33. Kf3
{[%clk 0:01:23.8]} 33... Kg7 {[%clk 0:00:19.2]} 34. Ke4 {[%clk 0:01:23.7]} 34...
Ra5 {[%clk 0:00:19.7]} 35. a4 {[%clk 0:01:21.4]} 35... b5 {[%clk 0:00:19.7]} 36.
Bxd4+ {[%clk 0:01:21.4]} 36... Nxd4 {[%clk 0:00:20.1]} 37. Rxd4 {[%clk
0:01:22.1]} 37... bxa4 {[%clk 0:00:20.8]} 38. Rxa4 {[%clk 0:01:22.8]} 38... Rb5
{[%clk 0:00:10.1]} 39. Rxa7+ {[%clk 0:01:20.8]} 39... Kf6 {[%clk 0:00:09.8]} 40.
Ra6+ {[%clk 0:01:20.3]} 40... Kg7 {[%clk 0:00:09.8]} 41. Ra3 {[%clk 0:01:20.3]}
41... h5 {[%clk 0:00:09.9]} 42. Kd4 {[%clk 0:01:18.5]} 42... Kf6 {[%clk
0:00:09.2]} 43. Kc4 {[%clk 0:01:18.5]} 43... Rb6 {[%clk 0:00:09.6]} 44. b4
{[%clk 0:01:18.7]} 44... Kf5 {[%clk 0:00:09.4]} 45. Kc5 {[%clk 0:01:17.9]} 45...
Rb8 {[%clk 0:00:09.4]} 46. b5 {[%clk 0:01:18]} 46... h4 {[%clk 0:00:08.2]} 47.
gxh4 {[%clk 0:01:17.2]} 47... Kg4 {[%clk 0:00:08]} 48. Ra4 {[%clk 0:01:15.1]}
48... Rc8+ {[%clk 0:00:07.2]} 49. Kd6 {[%clk 0:01:15]} 49... Rd8+ {[%clk
0:00:07.5]} 50. Kc7 {[%clk 0:01:14.9]} 50... Rd1 {[%clk 0:00:06.8]} 51. b6
{[%clk 0:01:14.7]} 51... Rc1+ {[%clk 0:00:06.3]} 52. Kb8 {[%clk 0:01:14.8]}
52... Rb1 {[%clk 0:00:05.8]} 53. b7 {[%clk 0:01:14.7]} 53... Kxh4 {[%clk
0:00:05.2]} 54. f5+ {[%clk 0:01:14.6]} 54... Kg5 {[%clk 0:00:05]} 55. fxg6
{[%clk 0:01:14.8]} 1-0

[Event "*** Titled Tuesday Blitz"]
[Site "Chess.com"]
[Date "2021.04.20"]
[Round "11"]
[White "ErikBlomqvist"]
[Black "RobertoJBM"]
[Result "1-0"]
[WhiteElo "2588"]
[BlackElo "2703"]
[TimeControl "180+1"]
[EndTime "12:05:37 PDT"]
[Termination "ErikBlomqvist won by resignation"]

1. e4 {[%clk 0:03:00.7]} 1... c6 {[%clk 0:02:59.6]} 2. d4 {[%clk 0:03:00.2]}
2... d5 {[%clk 0:03:00.5]} 3. exd5 {[%clk 0:03:01.1]} 3... cxd5 {[%clk
0:03:00.3]} 4. Bd3 {[%clk 0:03:01.5]} 4... Nc6 {[%clk 0:03:00.3]} 5. c3 {[%clk
0:03:01.8]} 5... Nf6 {[%clk 0:03:00.7]} 6. h3 {[%clk 0:03:01.7]} 6... g6 {[%clk
0:03:00.3]} 7. Nf3 {[%clk 0:03:01.8]} 7... Bf5 {[%clk 0:03:00.4]} 8. Be2 {[%clk
0:03:01.5]} 8... Bg7 {[%clk 0:02:58.7]} 9. O-O {[%clk 0:03:02]} 9... O-O {[%clk
0:02:58.3]} 10. Be3 {[%clk 0:03:02.5]} 10... Qc7 {[%clk 0:02:55.3]} 11. Nbd2
{[%clk 0:03:02.4]} 11... Rab8 {[%clk 0:02:53.4]} 12. Re1 {[%clk 0:02:57.8]}
12... b5 {[%clk 0:02:53.2]} 13. Rc1 {[%clk 0:02:57.7]} 13... Rfc8 {[%clk
0:02:51.9]} 14. Nb3 {[%clk 0:02:52.7]} 14... Nd7 {[%clk 0:02:49]} 15. Qd2 {[%clk
0:02:48.7]} 15... Qd8 {[%clk 0:02:46]} 16. Bf4 {[%clk 0:02:46.9]} 16... Rb7
{[%clk 0:02:43.7]} 17. g4 {[%clk 0:02:41.6]} 17... Be6 {[%clk 0:02:43.5]} 18.
Ng5 {[%clk 0:02:41.3]} 18... Nf8 {[%clk 0:02:40]} 19. Nc5 {[%clk 0:02:38.8]}
19... Rb6 {[%clk 0:02:39]} 20. Ngxe6 {[%clk 0:02:08.2]} 20... Nxe6 {[%clk
0:02:39.9]} 21. Nxe6 {[%clk 0:02:06.6]} 21... fxe6 {[%clk 0:02:40.8]} 22. Be3
{[%clk 0:02:00.6]} 22... Qd6 {[%clk 0:02:36.6]} 23. g5 {[%clk 0:01:55]} 23...
Rf8 {[%clk 0:02:35.2]} 24. f4 {[%clk 0:01:52.7]} 24... b4 {[%clk 0:02:31.6]} 25.
Kg2 {[%clk 0:01:44.8]} 25... bxc3 {[%clk 0:02:25.4]} 26. bxc3 {[%clk 0:01:40]}
26... Na5 {[%clk 0:02:21.3]} 27. Rb1 {[%clk 0:01:34.1]} 27... Rfb8 {[%clk
0:02:20.7]} 28. Rxb6 {[%clk 0:01:32.9]} 28... Rxb6 {[%clk 0:02:21.6]} 29. Bg4
{[%clk 0:00:54]} 29... Nc4 {[%clk 0:02:21]} 30. Qf2 {[%clk 0:00:54.3]} 30... Kf7
{[%clk 0:02:14.3]} 31. Bc1 {[%clk 0:00:50.6]} 31... Qc7 {[%clk 0:02:08.5]} 32.
h4 {[%clk 0:00:41.2]} 32... Rc6 {[%clk 0:02:06.4]} 33. Qe2 {[%clk 0:00:37.3]}
33... Qb6 {[%clk 0:02:01.5]} 34. h5 {[%clk 0:00:35.3]} 34... gxh5 {[%clk
0:01:50]} 35. Bxh5+ {[%clk 0:00:34.6]} 35... Kf8 {[%clk 0:01:50.5]} 36. Qd3
{[%clk 0:00:27.8]} 36... Kg8 {[%clk 0:01:42.5]} 37. Bg4 {[%clk 0:00:27.6]} 37...
Rd6 {[%clk 0:01:26.3]} 38. Rh1 {[%clk 0:00:26.6]} 38... Qa5 {[%clk 0:01:13.7]}
39. Qxh7+ {[%clk 0:00:08.5]} 39... Kf8 {[%clk 0:01:13.6]} 40. Qc2 {[%clk
0:00:09.2]} 40... Ra6 {[%clk 0:01:14]} 41. Qg6 {[%clk 0:00:05.1]} 41... Qxa2+
{[%clk 0:01:13.7]} 42. Kg3 {[%clk 0:00:04.1]} 42... Qb3 {[%clk 0:01:07.4]} 43.
Bxe6 {[%clk 0:00:04.2]} 43... Qxc3+ {[%clk 0:01:07.7]} 44. Kg4 {[%clk
0:00:04.7]} 44... Nd6 {[%clk 0:01:00.6]} 45. Rh8+ {[%clk 0:00:03]} 1-0

[Event "*** Titled Tuesday Blitz"]
[Site "Chess.com"]
[Date "2021.04.20"]
[Round "11"]
[White "JoseRemolar"]
[Black "GoValya"]
[Result "1-0"]
[WhiteElo "2420"]
[BlackElo "2293"]
[TimeControl "180+1"]
[EndTime "12:05:39 PDT"]
[Termination "JoseRemolar won by checkmate"]

1. e4 {[%clk 0:03:00.9]} 1... e6 {[%clk 0:02:59.5]} 2. Nf3 {[%clk 0:03:00.2]}
2... d5 {[%clk 0:02:59]} 3. e5 {[%clk 0:03:00.6]} 3... c5 {[%clk 0:02:58.9]} 4.
b4 {[%clk 0:03:00.9]} 4... cxb4 {[%clk 0:02:56.9]} 5. a3 {[%clk 0:03:00.8]} 5...
bxa3 {[%clk 0:02:56.3]} 6. d4 {[%clk 0:03:00]} 6... Nc6 {[%clk 0:02:55.2]} 7. c3
{[%clk 0:03:00]} 7... f6 {[%clk 0:02:46.6]} 8. Bd3 {[%clk 0:02:55.7]} 8... f5
{[%clk 0:02:41.2]} 9. g4 {[%clk 0:02:41.3]} 9... Nge7 {[%clk 0:02:36.1]} 10. Rg1
{[%clk 0:02:35.3]} 10... g6 {[%clk 0:02:28.5]} 11. Nxa3 {[%clk 0:02:34.2]} 11...
fxg4 {[%clk 0:02:20.8]} 12. Rxg4 {[%clk 0:02:29.4]} 12... Bg7 {[%clk 0:02:20.3]}
13. Nb5 {[%clk 0:02:18.9]} 13... O-O {[%clk 0:02:18.9]} 14. Nd6 {[%clk 0:02:15]}
14... Nf5 {[%clk 0:02:16.5]} 15. Bg5 {[%clk 0:02:13.4]} 15... Qd7 {[%clk
0:02:04.8]} 16. Bxf5 {[%clk 0:02:09]} 16... exf5 {[%clk 0:02:00.3]} 17. Rh4
{[%clk 0:02:08.1]} 17... Nd8 {[%clk 0:01:46.4]} 18. Qd2 {[%clk 0:02:04.2]} 18...
Nf7 {[%clk 0:01:19.7]} 19. Nxf7 {[%clk 0:01:33.6]} 19... Rxf7 {[%clk 0:01:11.1]}
20. Kf1 {[%clk 0:01:30.2]} 20... Qb5+ {[%clk 0:00:26.4]} 21. Kg2 {[%clk
0:01:27.1]} 21... Bd7 {[%clk 0:00:24.7]} 22. Rg1 {[%clk 0:01:21]} 22... Rc8
{[%clk 0:00:19.6]} 23. Kh1 {[%clk 0:01:11.8]} 23... Qc6 {[%clk 0:00:18.8]} 24.
Qf4 {[%clk 0:00:47.9]} 24... Qxc3 {[%clk 0:00:16.8]} 25. Bf6 {[%clk 0:00:44.7]}
25... Bxf6 {[%clk 0:00:15.1]} 26. exf6 {[%clk 0:00:45.6]} 26... Rcf8 {[%clk
0:00:13.7]} 27. Ne5 {[%clk 0:00:44.1]} 27... Be6 {[%clk 0:00:13.1]} 28. Rxg6+
{[%clk 0:00:21.3]} 28... Kh8 {[%clk 0:00:10.8]} 29. Rg7 {[%clk 0:00:14.5]} 29...
Qe1+ {[%clk 0:00:09.6]} 30. Kg2 {[%clk 0:00:13.4]} 30... Rxg7+ {[%clk
0:00:09.3]} 31. fxg7+ {[%clk 0:00:13.3]} 31... Kxg7 {[%clk 0:00:09.8]} 32. Qh6+
{[%clk 0:00:13.5]} 32... Kh8 {[%clk 0:00:07.7]} 33. Qxh7# {[%clk 0:00:13.6]} 1-0

[Event "*** Titled Tuesday Blitz"]
[Site "Chess.com"]
[Date "2021.04.20"]
[Round "11"]
[White "nrvisakh"]
[Black "attack2mateU"]
[Result "1-0"]
[WhiteElo "2804"]
[BlackElo "2710"]
[TimeControl "180+1"]
[EndTime "12:05:42 PDT"]
[Termination "nrvisakh won by resignation"]

1. e4 {[%clk 0:02:55.2]} 1... c5 {[%clk 0:02:59.7]} 2. Nf3 {[%clk 0:02:54.5]}
2... d6 {[%clk 0:02:59.9]} 3. d4 {[%clk 0:02:50.5]} 3... cxd4 {[%clk 0:03:00.8]}
4. Nxd4 {[%clk 0:02:51.2]} 4... Nf6 {[%clk 0:03:00.9]} 5. f3 {[%clk 0:02:51.4]}
5... e5 {[%clk 0:02:54.3]} 6. Bb5+ {[%clk 0:02:49.7]} 6... Nbd7 {[%clk 0:02:52]}
7. Nf5 {[%clk 0:02:47.7]} 7... d5 {[%clk 0:02:51.6]} 8. exd5 {[%clk 0:02:46.8]}
8... a6 {[%clk 0:02:40.3]} 9. Bxd7+ {[%clk 0:02:34.4]} 9... Bxd7 {[%clk
0:02:38.7]} 10. Ne3 {[%clk 0:02:34.9]} 10... Bc5 {[%clk 0:02:34.9]} 11. Nc3
{[%clk 0:02:21.7]} 11... Nh5 {[%clk 0:01:18.8]} 12. O-O {[%clk 0:01:55]} 12...
f5 {[%clk 0:01:18]} 13. Kh1 {[%clk 0:01:51.9]} 13... f4 {[%clk 0:01:10.5]} 14.
Ne4 {[%clk 0:01:03.3]} 14... Bxe3 {[%clk 0:01:09.8]} 15. Bxe3 {[%clk 0:01:03.7]}
15... fxe3 {[%clk 0:01:10.7]} 16. f4 {[%clk 0:01:04.1]} 16... Qh4 {[%clk
0:00:43.8]} 17. g3 {[%clk 0:01:04.4]} 17... Qh3 {[%clk 0:00:42.9]} 18. fxe5
{[%clk 0:00:20.1]} 18... O-O-O {[%clk 0:00:39.5]} 19. Qd4 {[%clk 0:00:16.7]}
19... Kb8 {[%clk 0:00:30.9]} 20. e6 {[%clk 0:00:15.3]} 20... Bc8 {[%clk
0:00:16.7]} 21. Qe5+ {[%clk 0:00:11.1]} 21... Ka8 {[%clk 0:00:17]} 22. Rfe1
{[%clk 0:00:06.5]} 22... Rhf8 {[%clk 0:00:16.6]} 23. e7 {[%clk 0:00:06.6]} 23...
Bg4 {[%clk 0:00:11.1]} 24. exd8=Q+ {[%clk 0:00:06.4]} 24... Rxd8 {[%clk
0:00:12]} 25. Rxe3 {[%clk 0:00:06.4]} 25... Rf8 {[%clk 0:00:11.8]} 26. Rg1
{[%clk 0:00:04.6]} 26... Rf2 {[%clk 0:00:09.4]} 27. Nxf2 {[%clk 0:00:02.3]} 1-0

[Event "*** Titled Tuesday Blitz"]
[Site "Chess.com"]
[Date "2021.04.20"]
[Round "11"]
[White "maxip32"]
[Black "Ladislav1969"]
[Result "0-1"]
[WhiteElo "2486"]
[BlackElo "2327"]
[TimeControl "180+1"]
[EndTime "12:05:43 PDT"]
[Termination "Ladislav1969 won on time"]

1. e4 {[%clk 0:03:00.9]} 1... c5 {[%clk 0:02:59.5]} 2. b4 {[%clk 0:02:58.1]}
2... e6 {[%clk 0:03:00.4]} 3. Nf3 {[%clk 0:02:52.1]} 3... cxb4 {[%clk
0:02:59.3]} 4. a3 {[%clk 0:02:52.2]} 4... d5 {[%clk 0:02:53.9]} 5. e5 {[%clk
0:02:51.9]} 5... Nc6 {[%clk 0:02:50.1]} 6. d4 {[%clk 0:02:50.9]} 6... bxa3
{[%clk 0:02:41.2]} 7. Bxa3 {[%clk 0:02:49.6]} 7... Bxa3 {[%clk 0:02:35.3]} 8.
Rxa3 {[%clk 0:02:42.5]} 8... Nge7 {[%clk 0:02:36.2]} 9. Bd3 {[%clk 0:02:36.7]}
9... Nf5 {[%clk 0:02:33.7]} 10. O-O {[%clk 0:02:19.3]} 10... Nfxd4 {[%clk
0:02:25.8]} 11. Nxd4 {[%clk 0:02:20.2]} 11... Nxd4 {[%clk 0:02:25]} 12. Qg4
{[%clk 0:02:16.9]} 12... Nf5 {[%clk 0:02:03]} 13. Bxf5 {[%clk 0:02:16.2]} 13...
exf5 {[%clk 0:02:03.2]} 14. Qxg7 {[%clk 0:02:16.3]} 14... Rf8 {[%clk 0:01:57.2]}
15. Nc3 {[%clk 0:02:15.2]} 15... Be6 {[%clk 0:01:21.1]} 16. Nb5 {[%clk
0:02:13.6]} 16... Qb6 {[%clk 0:01:09.9]} 17. Nd6+ {[%clk 0:02:13.3]} 17... Kd7
{[%clk 0:01:10.1]} 18. Rb3 {[%clk 0:02:13.3]} 18... Rg8 {[%clk 0:00:59.8]} 19.
Qf6 {[%clk 0:00:53.9]} 19... Qd4 {[%clk 0:00:58.2]} 20. Rxb7+ {[%clk 0:00:38]}
20... Kc6 {[%clk 0:00:58.1]} 21. h3 {[%clk 0:00:27.5]} 21... Rxg2+ {[%clk
0:00:37.5]} 22. Kxg2 {[%clk 0:00:27.8]} 22... Rg8+ {[%clk 0:00:34.4]} 23. Kh1
{[%clk 0:00:17.2]} 23... Qf4 {[%clk 0:00:20.6]} 24. Rc7+ {[%clk 0:00:16.4]}
24... Kxc7 {[%clk 0:00:18.4]} 25. Qe7+ {[%clk 0:00:16.5]} 25... Bd7 {[%clk
0:00:13.5]} 26. Nb5+ {[%clk 0:00:15.5]} 26... Kb6 {[%clk 0:00:06.7]} 27. Qd6+
{[%clk 0:00:07.8]} 27... Bc6 {[%clk 0:00:07.1]} 28. f3 {[%clk 0:00:03.8]} 28...
Qg3 {[%clk 0:00:06.4]} 0-1

[Event "*** Titled Tuesday Blitz"]
[Site "Chess.com"]
[Date "2021.04.20"]
[Round "11"]
[White "TST2014"]
[Black "DeTimmerman"]
[Result "1/2-1/2"]
[WhiteElo "2665"]
[BlackElo "2813"]
[TimeControl "180+1"]
[EndTime "12:05:44 PDT"]
[Termination "Game drawn by stalemate"]

1. d4 {[%clk 0:03:00.9]} 1... Nf6 {[%clk 0:02:59.8]} 2. c4 {[%clk 0:03:00.7]}
2... e6 {[%clk 0:03:00.7]} 3. Nf3 {[%clk 0:03:00.6]} 3... d5 {[%clk 0:03:00.6]}
4. Nc3 {[%clk 0:03:00.3]} 4... dxc4 {[%clk 0:03:00.7]} 5. e3 {[%clk 0:02:59.3]}
5... a6 {[%clk 0:03:00.9]} 6. a4 {[%clk 0:02:59.1]} 6... c5 {[%clk 0:03:00.9]}
7. Bxc4 {[%clk 0:02:57.5]} 7... cxd4 {[%clk 0:03:01.2]} 8. exd4 {[%clk
0:02:57.6]} 8... Nc6 {[%clk 0:03:01.6]} 9. O-O {[%clk 0:02:56.2]} 9... Be7
{[%clk 0:03:01.8]} 10. Be3 {[%clk 0:02:55.8]} 10... Nb4 {[%clk 0:03:02.1]} 11.
Qe2 {[%clk 0:02:52.2]} 11... Nbd5 {[%clk 0:03:01.7]} 12. Bg5 {[%clk 0:02:39.7]}
12... O-O {[%clk 0:02:55.6]} 13. Rfe1 {[%clk 0:02:36.1]} 13... b6 {[%clk
0:02:49]} 14. Rad1 {[%clk 0:02:26.9]} 14... Bb7 {[%clk 0:02:48.3]} 15. Ne5
{[%clk 0:02:16.1]} 15... Nxc3 {[%clk 0:02:40.4]} 16. bxc3 {[%clk 0:02:14.6]}
16... Nd5 {[%clk 0:02:41.1]} 17. Bxe7 {[%clk 0:02:07.8]} 17... Qxe7 {[%clk
0:02:41.3]} 18. Bxd5 {[%clk 0:02:00]} 18... Bxd5 {[%clk 0:02:42.2]} 19. c4
{[%clk 0:02:00]} 19... Bb7 {[%clk 0:02:40.8]} 20. Qb2 {[%clk 0:01:56.8]} 20...
Qc7 {[%clk 0:02:26.5]} 21. Rb1 {[%clk 0:01:41.8]} 21... f6 {[%clk 0:02:26.7]}
22. Qxb6 {[%clk 0:01:41]} 22... Qxb6 {[%clk 0:02:27.6]} 23. Rxb6 {[%clk
0:01:40.6]} 23... fxe5 {[%clk 0:02:28.5]} 24. Rxb7 {[%clk 0:01:38.2]} 24... exd4
{[%clk 0:02:28.4]} 25. Rxe6 {[%clk 0:01:33.7]} 25... Rfe8 {[%clk 0:02:28.5]} 26.
Rxe8+ {[%clk 0:01:28.2]} 26... Rxe8 {[%clk 0:02:29.4]} 27. Kf1 {[%clk
0:01:28.6]} 27... Rc8 {[%clk 0:02:26.5]} 28. Rb4 {[%clk 0:01:18.2]} 28... a5
{[%clk 0:02:26.1]} 29. Rb5 {[%clk 0:01:17.6]} 29... Rxc4 {[%clk 0:02:25.7]} 30.
Rxa5 {[%clk 0:01:17.7]} 30... d3 {[%clk 0:02:26]} 31. Ke1 {[%clk 0:01:16.2]}
31... Rc2 {[%clk 0:02:26.1]} 32. Rd5 {[%clk 0:01:14.3]} 32... Re2+ {[%clk
0:02:22]} 33. Kf1 {[%clk 0:01:13.8]} 33... Ra2 {[%clk 0:02:18]} 34. Rxd3 {[%clk
0:01:09.2]} 34... Rxa4 {[%clk 0:02:18.2]} 35. g3 {[%clk 0:01:09.3]} 35... g5
{[%clk 0:02:16.9]} 36. Kg2 {[%clk 0:01:07.7]} 36... Kg7 {[%clk 0:02:16.7]} 37.
h3 {[%clk 0:01:07.5]} 37... h5 {[%clk 0:02:15.7]} 38. Kf3 {[%clk 0:01:03.8]}
38... Kf6 {[%clk 0:02:07.1]} 39. Rd6+ {[%clk 0:01:03]} 39... Kg7 {[%clk
0:01:59.1]} 40. Ke3 {[%clk 0:01:00.8]} 40... Rb4 {[%clk 0:01:59.1]} 41. Rd4
{[%clk 0:01:00.2]} 41... Rb3+ {[%clk 0:01:54.3]} 42. Ke4 {[%clk 0:00:59.2]}
42... Rb2 {[%clk 0:01:52.9]} 43. Rd7+ {[%clk 0:00:57.7]} 43... Kf6 {[%clk
0:01:52.5]} 44. Rd6+ {[%clk 0:00:57.8]} 44... Kg7 {[%clk 0:01:52.8]} 45. f4
{[%clk 0:00:48.7]} 45... gxf4 {[%clk 0:01:46.4]} 46. Kxf4 {[%clk 0:00:48.7]}
46... h4 {[%clk 0:01:37.7]} 47. g4 {[%clk 0:00:44.5]} 47... Rb3 {[%clk
0:01:37.7]} 48. Kg5 {[%clk 0:00:41.4]} 48... Rxh3 {[%clk 0:01:36.2]} 49. Rg6+
{[%clk 0:00:41.2]} 49... Kf8 {[%clk 0:01:35.8]} 50. Rh6 {[%clk 0:00:41.4]} 50...
Ra3 {[%clk 0:01:35]} 51. Rxh4 {[%clk 0:00:41.1]} 51... Kg7 {[%clk 0:01:35.2]}
52. Rh1 {[%clk 0:00:38.3]} 52... Ra6 {[%clk 0:01:34.8]} 53. Rb1 {[%clk
0:00:35.5]} 53... Rc6 {[%clk 0:01:34.8]} 54. Rb7+ {[%clk 0:00:34.1]} 54... Kg8
{[%clk 0:01:34.5]} 55. Kf5 {[%clk 0:00:34.3]} 55... Ra6 {[%clk 0:01:34.9]} 56.
Re7 {[%clk 0:00:33.4]} 56... Rb6 {[%clk 0:01:35.2]} 57. Re6 {[%clk 0:00:33.6]}
57... Rxe6 {[%clk 0:01:22.7]} 58. Kxe6 {[%clk 0:00:33.6]} 58... Kg7 {[%clk
0:01:23.6]} 59. Kf5 {[%clk 0:00:33.7]} 59... Kf7 {[%clk 0:01:24.2]} 60. Kg5
{[%clk 0:00:34]} 60... Kg7 {[%clk 0:01:24.7]} 61. Kh5 {[%clk 0:00:34.1]} 61...
Kh7 {[%clk 0:01:25.1]} 62. Kg5 {[%clk 0:00:34.3]} 62... Kg7 {[%clk 0:01:25.4]}
63. Kf5 {[%clk 0:00:34.9]} 63... Kf7 {[%clk 0:01:25.8]} 64. Ke5 {[%clk
0:00:35.4]} 64... Kg6 {[%clk 0:01:25.6]} 65. Kf4 {[%clk 0:00:35.9]} 65... Kf6
{[%clk 0:01:26.2]} 66. g5+ {[%clk 0:00:35.8]} 66... Kg6 {[%clk 0:01:26.6]} 67.
Kg4 {[%clk 0:00:35.6]} 67... Kg7 {[%clk 0:01:27.5]} 68. Kh5 {[%clk 0:00:36]}
68... Kh7 {[%clk 0:01:27.7]} 69. Kh4 {[%clk 0:00:36.5]} 69... Kg6 {[%clk
0:01:28.6]} 70. Kg4 {[%clk 0:00:37.1]} 70... Kg7 {[%clk 0:01:29.5]} 71. Kf5
{[%clk 0:00:38]} 71... Kf7 {[%clk 0:01:29.6]} 72. g6+ {[%clk 0:00:38.5]} 72...
Kg7 {[%clk 0:01:29.8]} 73. Kg5 {[%clk 0:00:39.4]} 73... Kg8 {[%clk 0:01:30.7]}
74. Kg4 {[%clk 0:00:40]} 74... Kg7 {[%clk 0:01:31.6]} 75. Kf5 {[%clk 0:00:40.6]}
75... Kg8 {[%clk 0:01:32.1]} 76. Kf6 {[%clk 0:00:41.1]} 76... Kf8 {[%clk
0:01:32.3]} 77. Ke5 {[%clk 0:00:41.4]} 77... Kg7 {[%clk 0:01:33.2]} 78. Kf5
{[%clk 0:00:42.3]} 78... Kg8 {[%clk 0:01:33.7]} 79. Kg4 {[%clk 0:00:42.6]} 79...
Kg7 {[%clk 0:01:34.1]} 80. Kh5 {[%clk 0:00:43.5]} 80... Kg8 {[%clk 0:01:35]} 81.
Kh6 {[%clk 0:00:44]} 81... Kh8 {[%clk 0:01:34.9]} 82. g7+ {[%clk 0:00:44.3]}
82... Kg8 {[%clk 0:01:35.1]} 83. Kg6 {[%clk 0:00:45.2]} 1/2-1/2

[Event "*** Titled Tuesday Blitz"]
[Site "Chess.com"]
[Date "2021.04.20"]
[Round "11"]
[White "fastestmindalive"]
[Black "grzechu96"]
[Result "0-1"]
[WhiteElo "2750"]
[BlackElo "2698"]
[TimeControl "180+1"]
[EndTime "12:05:48 PDT"]
[Termination "grzechu96 won on time"]

1. e4 {[%clk 0:03:00.9]} 1... e5 {[%clk 0:02:59.5]} 2. Nf3 {[%clk 0:02:59.8]}
2... Nc6 {[%clk 0:03:00]} 3. d4 {[%clk 0:02:58.6]} 3... exd4 {[%clk 0:03:00]} 4.
Bc4 {[%clk 0:02:58.3]} 4... Nf6 {[%clk 0:02:59.1]} 5. e5 {[%clk 0:02:57.4]} 5...
Ne4 {[%clk 0:02:53.5]} 6. Bd5 {[%clk 0:02:55.3]} 6... Nc5 {[%clk 0:02:51.7]} 7.
c3 {[%clk 0:02:54.4]} 7... d3 {[%clk 0:02:18.6]} 8. O-O {[%clk 0:02:52]} 8...
Be7 {[%clk 0:02:16.8]} 9. b4 {[%clk 0:02:51.3]} 9... Ne6 {[%clk 0:02:16.9]} 10.
Qxd3 {[%clk 0:02:50.3]} 10... d6 {[%clk 0:02:13.2]} 11. exd6 {[%clk 0:02:48.3]}
11... Qxd6 {[%clk 0:02:12.7]} 12. Na3 {[%clk 0:02:35.1]} 12... O-O {[%clk
0:01:44.9]} 13. Nc4 {[%clk 0:02:35.2]} 13... Qd8 {[%clk 0:01:44.4]} 14. Rd1
{[%clk 0:02:31]} 14... Bf6 {[%clk 0:01:40]} 15. Qc2 {[%clk 0:02:13]} 15... Ncd4
{[%clk 0:01:21.9]} 16. cxd4 {[%clk 0:01:12.1]} 16... Qxd5 {[%clk 0:01:20.5]} 17.
Ne3 {[%clk 0:01:11.5]} 17... Qh5 {[%clk 0:01:18.4]} 18. Bb2 {[%clk 0:01:03.9]}
18... Nf4 {[%clk 0:01:18.5]} 19. Qxc7 {[%clk 0:00:56.9]} 19... Nxg2 {[%clk
0:01:18.6]} 20. Kxg2 {[%clk 0:00:43.5]} 20... Qh3+ {[%clk 0:01:13.9]} 21. Kg1
{[%clk 0:00:41.6]} 21... Qxf3 {[%clk 0:01:14.8]} 22. Qg3 {[%clk 0:00:40]} 22...
Qe4 {[%clk 0:01:13.1]} 23. Rab1 {[%clk 0:00:24.6]} 23... Bd7 {[%clk 0:00:51.7]}
24. d5 {[%clk 0:00:23.8]} 24... Bxb2 {[%clk 0:00:51.9]} 25. Rxb2 {[%clk
0:00:24.7]} 25... f5 {[%clk 0:00:52.5]} 26. f4 {[%clk 0:00:17.6]} 26... Rf6
{[%clk 0:00:49.1]} 27. Kf2 {[%clk 0:00:16.2]} 27... Re8 {[%clk 0:00:35.7]} 28.
Qf3 {[%clk 0:00:15.5]} 28... Qe7 {[%clk 0:00:35.8]} 29. d6 {[%clk 0:00:12.6]}
29... Qd8 {[%clk 0:00:35.2]} 30. Rbd2 {[%clk 0:00:05.3]} 30... Rh6 {[%clk
0:00:35.3]} 31. Qg3 {[%clk 0:00:04.6]} 31... Rg6 {[%clk 0:00:35]} 32. Qf3 {[%clk
0:00:03.6]} 32... Qh4+ {[%clk 0:00:35.2]} 33. Ke2 {[%clk 0:00:01.4]} 33... Bb5+
{[%clk 0:00:31.1]} 34. Rd3 {[%clk 0:00:02.3]} 34... Rxd6 {[%clk 0:00:28.7]} 35.
a4 {[%clk 0:00:01.6]} 35... Bxd3+ {[%clk 0:00:25.7]} 36. Rxd3 {[%clk 0:00:02.5]}
36... Qxh2+ {[%clk 0:00:25.6]} 0-1